bitfinex/quotes_BTCUSD_20250303
["timestamp","ask_amount","ask_price","bid_price","bid_amount"]
[1740963524812,0.01224171,93604.0,93597.0,0.00149561]
[1740963525010,0.01224171,93604.0,93596.0,1.50499]
[1740963525011,0.160261,93597.0,93596.0,1.50499]
[1740963526708,0.160261,93597.0,93596.0,0.00499]
[1740963529770,0.160261,93597.0,93596.0,1.50499]
[1740963530315,0.160261,93597.0,93596.0,1.53649512]
[1740963534492,0.160261,93597.0,93596.0,0.03649512]
[1740963534706,0.160261,93597.0,93596.0,0.03670832]
[1740963534899,0.160261,93597.0,93596.0,1.5052032]
[1740963535339,0.160261,93597.0,93596.0,1.53670832]
[1740963537015,0.16821627,93597.0,93596.0,1.53670832]
[1740963537972,0.16821627,93597.0,93596.0,0.03670832]
[1740963538587,0.16821627,93597.0,93596.0,1.5052032]
[1740963538785,0.21821627,93597.0,93596.0,1.5052032]
[1740963539306,0.21821627,93597.0,93596.0,1.53670832]
[1740963539863,0.21821627,93597.0,93596.0,0.03670832]
[1740963540407,0.29941627,93597.0,93596.0,0.03670832]
[1740963540607,0.38437627,93597.0,93596.0,0.0052032]
[1740963541113,0.29941627,93597.0,93596.0,0.0052032]
[1740963541923,0.38437627,93597.0,93596.0,0.0052032]
[1740963542478,0.29941627,93597.0,93596.0,0.0052032]
[1740963542683,0.38437627,93597.0,93596.0,0.0052032]
[1740963543041,0.29941627,93597.0,93596.0,0.0052032]
[1740963543440,0.38437627,93597.0,93596.0,0.0052032]
[1740963543872,0.68437627,93597.0,93596.0,0.0052032]
[1740963544121,0.460276,93588.0,93587.0,4e-07]
[1740963544323,0.460287,93582.0,93581.0,4e-07]
[1740963544758,0.460287,93582.0,93559.0,0.03205137]
[1740963544759,0.540904,93572.0,93559.0,0.03205137]
[1740963544935,0.0806,93559.0,93514.0,0.02097983]
[1740963545135,0.0806,93559.0,93507.0,0.0642275]
[1740963545136,0.16035,93545.0,93544.0,0.09608876]
[1740963545684,0.1604705,93545.0,93544.0,0.09608876]
[1740963546521,0.2091705,93545.0,93544.0,0.09608876]
[1740963546739,0.719933,93545.0,93544.0,0.09608876]
[1740963547351,0.74002151,93545.0,93544.0,0.09608876]
[1740963548189,0.76158198,93545.0,93544.0,0.09608876]
[1740963548684,0.84650198,93545.0,93544.0,0.09608876]
[1740963548883,0.71590198,93545.0,93544.0,0.09608876]
[1740963549808,0.71590198,93545.0,93544.0,1.5]
[1740963550368,0.69434151,93545.0,93544.0,1.5]
[1740963550595,0.26547901,93545.0,93544.0,1.5]
[1740963552478,0.160391,93521.0,93520.0,0.0002131]
[1740963554141,0.17240637,93521.0,93520.0,0.0002131]
[1740963560240,0.160391,93521.0,93520.0,0.0002131]
[1740963565664,0.09706301,93524.0,93520.0,0.0002131]
[1740963565884,0.160391,93521.0,93520.0,0.0002131]
[1740963567805,0.160391,93521.0,93520.0,0.03227191]
[1740963568364,0.160391,93521.0,93520.0,1.53227191]
[1740963568561,0.160391,93521.0,93520.0,1.5002131]
[1740963568883,0.160391,93521.0,93520.0,1.53227191]
[1740963569766,0.16829525,93521.0,93520.0,1.53227191]
[1740963571757,0.59209525,93521.0,93520.0,0.03227191]
[1740963572171,0.59209525,93521.0,93520.0,0.0002131]
[1740963572525,0.67693525,93521.0,93520.0,0.0002131]
[1740963576578,0.669031,93521.0,93520.0,0.0002131]
[1740963576778,0.7978935,93521.0,93520.0,0.0002131]
[1740963577124,0.3,93520.0,93518.0,0.28371757]
[1740963577345,0.160395,93519.0,93518.0,0.28371757]
[1740963577899,0.545195,93519.0,93518.0,0.28371757]
[1740963579211,0.460395,93519.0,93518.0,0.28371757]
[1740963579413,0.55313436,93519.0,93518.0,0.28371757]
[1740963579988,0.55313436,93519.0,93518.0,1.78371757]
[1740963580379,0.55313436,93519.0,93518.0,0.28371757]
[1740963581464,0.55313436,93519.0,93518.0,0.28393087]
[1740963582968,0.55313436,93519.0,93518.0,0.31300626]
[1740963591520,0.55313436,93519.0,93518.0,1.81300626]
[1740963593220,0.55313436,93519.0,93518.0,0.31300626]
[1740963593637,0.16833436,93519.0,93518.0,0.31300626]
[1740963597621,0.00793936,93519.0,93518.0,0.31300626]
[1740963597971,0.00793936,93519.0,93518.0,0.28393087]
[1740963598372,0.00793936,93519.0,93518.0,0.31300719]
[1740963598575,0.00793936,93519.0,93518.0,0.38930719]
[1740963598983,0.16833436,93519.0,93518.0,0.38930719]
[1740963599327,0.16833436,93519.0,93518.0,0.31300719]
[1740963599886,0.16833436,93519.0,93518.0,1.81300719]
[1740963600266,0.16790436,93519.0,93518.0,1.81300719]
[1740963600644,0.16790436,93519.0,93518.0,1.97340319]
[1740963600645,0.00750936,93519.0,93518.0,1.97340319]
[1740963600849,0.00750936,93519.0,93518.0,1.88930719]
[1740963601074,0.16790436,93519.0,93518.0,1.81300719]
[1740963601251,0.47997026,93519.0,93518.0,0.31300719]
[1740963601654,0.59483195,93519.0,93518.0,0.31300719]
[1740963601856,0.51223195,93519.0,93518.0,0.31300719]
[1740963602058,0.47997026,93519.0,93518.0,0.31300719]
[1740963602323,0.00750936,93519.0,93518.0,0.31300719]
[1740963602539,0.21429794,93524.0,93518.0,0.31300719]
[1740963602540,0.00044794,93524.0,93518.0,0.31300719]
[1740963602714,0.160395,93519.0,93518.0,0.31300719]
[1740963603785,0.00044794,93524.0,93518.0,0.31300719]
[1740963603993,0.160389,93523.0,93520.0,0.0474]
[1740963604197,0.00044794,93524.0,93520.0,0.0474]
[1740963604394,0.00044794,93524.0,93523.0,0.160388]
[1740963604769,0.00044794,93524.0,93523.0,0.16188458]
[1740963605350,0.00044794,93524.0,93523.0,0.160388]
[1740963605548,0.00044794,93524.0,93518.0,0.31300719]
[1740963605871,0.16039,93522.0,93519.0,0.00149681]
[1740963606047,0.00044794,93524.0,93519.0,0.00149686]
[1740963606248,0.00044794,93524.0,93523.0,0.160388]
[1740963606449,0.00044794,93524.0,93523.0,0.00149664]
[1740963606651,0.00044794,93524.0,93523.0,0.24398479]
[1740963606853,0.00044794,93524.0,93523.0,0.13]
[1740963607056,0.16083394,93524.0,93523.0,0.13]
[1740963607255,0.00044794,93524.0,93518.0,0.31300719]
[1740963607448,0.16039,93522.0,93518.0,0.31300719]
[1740963607644,0.00044794,93524.0,93518.0,0.31300719]
[1740963607869,0.213851,93523.0,93518.0,0.31300719]
[1740963608068,0.160395,93519.0,93518.0,0.31300719]
[1740963608244,0.17225223,93519.0,93518.0,0.31300719]
[1740963608858,0.55135223,93519.0,93518.0,0.31300719]
[1740963609671,0.55685223,93519.0,93518.0,0.31300719]
[1740963609889,0.00044794,93524.0,93518.0,0.31300719]
[1740963610089,0.00044794,93524.0,93519.0,0.00149677]
[1740963610491,0.00044794,93524.0,93523.0,1.5]
[1740963611122,0.16083394,93524.0,93523.0,1.5]
[1740963611743,0.16083394,93524.0,93523.0,1.498034]
[1740963611744,0.00044794,93524.0,93523.0,1.498034]
[1740963612090,0.16083394,93524.0,93523.0,1.498034]
[1740963612299,0.00044794,93524.0,93523.0,1.498034]
[1740963612679,0.16083394,93524.0,93523.0,1.498034]
[1740963613419,0.16083394,93524.0,93518.0,0.31300719]
[1740963613420,0.160395,93519.0,93518.0,0.31300719]
[1740963613835,0.00044794,93524.0,93518.0,0.31300719]
[1740963614010,0.160395,93519.0,93518.0,0.31300719]
[1740963615640,0.213853,93522.0,93518.0,0.31300719]
[1740963615985,0.160395,93519.0,93518.0,0.31300719]
[1740963619794,0.160395,93519.0,93518.0,1.81300719]
[1740963620989,0.00044794,93524.0,93518.0,1.81300719]
[1740963621222,0.160395,93519.0,93518.0,1.81300719]
[1740963621390,0.160393,93520.0,93518.0,1.81300719]
[1740963621586,0.21429794,93524.0,93518.0,1.81300719]
[1740963621830,0.00044794,93524.0,93518.0,1.81300719]
[1740963622032,0.16039,93522.0,93518.0,1.81300719]
[1740963622231,0.160394,93520.0,93518.0,1.81300719]
[1740963622536,0.00044794,93524.0,93519.0,0.160395]
[1740963622693,0.00044794,93524.0,93520.0,0.08119681]
[1740963622891,0.00044794,93524.0,93520.0,0.12959681]
[1740963623092,0.213851,93523.0,93520.0,0.1281]
[1740963623299,0.160391,93521.0,93520.0,0.0484]
[1740963623631,0.160388,93523.0,93520.0,0.0484]
[1740963623832,0.213852,93523.0,93520.0,0.0484]
[1740963624166,0.00044794,93524.0,93520.0,0.0484]
[1740963624167,0.00044794,93524.0,93520.0,0.0498968]
[1740963624299,0.00044794,93524.0,93520.0,0.0484]
[1740963624498,0.00044794,93524.0,93523.0,1.5]
[1740963624696,0.00044794,93524.0,93523.0,1.660388]
[1740963626315,0.00044794,93524.0,93523.0,2.116688]
[1740963626790,0.00044794,93524.0,93523.0,2.42552502]
[1740963627229,0.00044794,93524.0,93523.0,2.72552502]
[1740963627432,0.00044794,93524.0,93523.0,2.93145702]
[1740963627635,0.00044794,93524.0,93523.0,2.82522502]
[1740963631338,0.00044794,93524.0,93523.0,2.82349302]
[1740963633220,0.00044794,93524.0,93523.0,2.164656]
[1740963633765,0.00044794,93524.0,93523.0,2.464656]
[1740963634420,0.00044794,93524.0,93523.0,2.57349302]
[1740963639487,0.00044794,93524.0,93523.0,2.57370632]
[1740963640078,0.00044794,93524.0,93523.0,2.62370632]
[1740963642048,0.00044794,93524.0,93523.0,2.65950632]
[1740963642651,0.00044794,93524.0,93523.0,1.4984813]
[1740963642852,0.16083394,93524.0,93523.0,1.4984813]
[1740963643057,0.23833394,93524.0,93523.0,1.4984813]
[1740963643790,0.07794794,93524.0,93523.0,1.4984813]
[1740963643935,0.00044794,93524.0,93523.0,1.4984813]
[1740963644155,0.16083394,93524.0,93523.0,1.4984813]
[1740963644781,0.00044794,93524.0,93523.0,1.4984813]
[1740963646174,0.00044794,93524.0,93523.0,1.67044388]
[1740963646390,0.00044794,93524.0,93523.0,1.51005588]
[1740963646592,0.00044794,93524.0,93523.0,1.67044388]
[1740963647947,0.00044794,93524.0,93523.0,1.4984813]
[1740963649334,0.00044794,93524.0,93523.0,1.6588693]
[1740963651843,0.00044794,93524.0,93523.0,1.81770632]
[1740963654319,0.00044794,93524.0,93523.0,2.44480632]
[1740963657808,0.00044794,93524.0,93523.0,2.49480632]
[1740963658703,0.0001205,93545.0,93542.0,0.160354]
[1740963658904,0.0001205,93545.0,93544.0,0.160352]
[1740963659339,0.0001205,93545.0,93544.0,1.660352]
[1740963660567,0.0001205,93545.0,93544.0,1.5]
[1740963661858,0.0001205,93545.0,93544.0,1.660352]
[1740963662849,0.0001205,93545.0,93544.0,1.960352]
[1740963663051,0.00056844,93545.0,93544.0,2.11918902]
[1740963663274,0.00056844,93545.0,93544.0,2.44628902]
[1740963663991,0.00056844,93545.0,93544.0,2.45769963]
[1740963664191,0.00047499,93545.0,93544.0,2.45769963]
[1740963666197,0.00047499,93545.0,93544.0,2.46567241]
[1740963666922,0.00047499,93545.0,93544.0,2.67401241]
[1740963667323,0.00047499,93545.0,93544.0,2.75331241]
[1740963667550,9.9e-07,93545.0,93544.0,2.78911241]
[1740963667752,9.9e-07,93545.0,93544.0,2.71311193]
[1740963668520,0.0453,93596.0,93579.0,0.05]
[1740963668755,0.00011217,93596.0,93581.0,0.3]
[1740963668965,0.00011217,93596.0,93582.0,0.00149561]
[1740963669167,0.00011217,93596.0,93595.0,1.5]
[1740963669798,0.00011217,93596.0,93595.0,1.660264]
[1740963670000,0.00011217,93596.0,93595.0,1.5]
[1740963670225,0.00011217,93596.0,93595.0,1.660264]
[1740963670621,0.00011217,93596.0,93595.0,1.5]
[1740963672154,0.10011217,93596.0,93595.0,1.49835977]
[1740963672965,0.10011217,93596.0,93595.0,2.44456079]
[1740963673146,0.10011217,93596.0,93595.0,2.39456079]
[1740963674477,0.10011217,93596.0,93595.0,2.12545977]
[1740963674678,0.10011217,93596.0,93595.0,2.28572377]
[1740963676064,0.10011217,93596.0,93595.0,2.64456079]
[1740963676279,0.10056011,93596.0,93595.0,2.64456079]
[1740963678544,0.10056011,93596.0,93595.0,2.32545977]
[1740963678875,0.10056011,93596.0,93595.0,2.48572377]
[1740963679283,0.39102311,93596.0,93595.0,1.82545977]
[1740963679509,0.1603,93574.0,93573.0,0.09579491]
[1740963679739,0.2398,93574.0,93573.0,0.09579491]
[1740963679971,0.2398,93574.0,93573.0,1.59579491]
[1740963681481,0.25114378,93574.0,93573.0,1.59579491]
[1740963681974,0.29774378,93574.0,93573.0,1.59579491]
[1740963682683,0.29774378,93574.0,93551.0,0.3271]
[1740963682684,0.160338,93552.0,93551.0,0.3271]
[1740963682886,0.160351,93545.0,93535.0,0.3271]
[1740963683087,0.13744378,93574.0,93535.0,0.3271]
[1740963683088,0.08416,93571.0,93535.0,0.3271]
[1740963683352,0.0754,93547.0,93535.0,0.3271]
[1740963683544,0.160358,93541.0,93535.0,0.3271]
[1740963683750,0.0754,93547.0,93535.0,0.3271]
[1740963683988,0.0754,93547.0,93536.0,0.3]
[1740963684189,0.160353,93544.0,93536.0,0.3]
[1740963684441,0.16035,93546.0,93536.0,0.3]
[1740963684820,0.0757,93563.0,93538.0,0.3]
[1740963685052,0.160345,93548.0,93539.0,0.10883702]
[1740963685254,0.213783,93553.0,93539.0,0.15883702]
[1740963685458,0.160337,93553.0,93543.0,0.160353]
[1740963685679,0.0757,93563.0,93539.0,0.15883702]
[1740963685851,0.160324,93561.0,93539.0,0.16033323]
[1740963686056,0.160321,93562.0,93554.0,0.160334]
[1740963686227,0.0757,93563.0,93553.0,0.160336]
[1740963686418,0.160325,93560.0,93553.0,0.160336]
[1740963686617,0.0757,93563.0,93554.0,0.160334]
[1740963686821,0.160323,93561.0,93542.0,0.3]
[1740963687030,0.160323,93561.0,93483.0,0.11314411]
[1740963687031,0.0757,93563.0,93544.0,0.3]
[1740963687394,0.0757,93563.0,93546.0,0.3]
[1740963687673,0.213761,93562.0,93546.0,0.3]
[1740963687966,0.160346,93548.0,93546.0,0.3]
[1740963688277,0.213761,93562.0,93547.0,1.5]
[1740963688472,0.213761,93562.0,93546.0,0.3]
[1740963688876,0.0757,93563.0,93545.0,0.3271]
[1740963689093,0.160348,93546.0,93545.0,0.3271]
[1740963689478,0.0757,93563.0,93546.0,0.0002131]
[1740963689479,0.213761,93562.0,93546.0,0.0002131]
[1740963689681,0.160332,93556.0,93548.0,0.160345]
[1740963689885,0.160342,93550.0,93549.0,0.00149633]
[1740963690083,0.213764,93561.0,93546.0,0.00170947]
[1740963690289,0.213783,93553.0,93546.0,0.00170947]
[1740963690486,0.213764,93561.0,93546.0,0.00170947]
[1740963690893,0.160342,93550.0,93546.0,0.00170947]
[1740963691090,0.0757,93563.0,93546.0,0.00170947]
[1740963691494,0.160347,93547.0,93546.0,0.0002131]
[1740963698416,0.160347,93547.0,93546.0,1.5002131]
[1740963699785,0.160345,93548.0,93546.0,1.5002131]
[1740963699993,0.213766,93561.0,93546.0,0.0002131]
[1740963700213,0.0773,93573.0,93547.0,0.00149631]
[1740963700412,0.0773,93573.0,93570.0,1.5]
[1740963700619,0.160306,93571.0,93570.0,1.5]
[1740963700827,0.0773,93573.0,93570.0,1.5]
[1740963701159,0.160306,93571.0,93570.0,1.5]
[1740963701516,0.0773,93573.0,93570.0,1.5]
[1740963701688,0.0773,93573.0,93570.0,1.5004023]
[1740963701891,0.0773,93573.0,93572.0,0.160304]
[1740963702149,0.01120595,93581.0,93575.0,0.160298]
[1740963702449,0.01120595,93581.0,93570.0,1.5004023]
[1740963702450,0.0775,93583.0,93577.0,0.213727]
[1740963702621,0.30265412,93583.0,93570.0,1.5004023]
[1740963702823,0.160295,93578.0,93570.0,1.5004023]
[1740963703057,0.0775,93583.0,93571.0,0.00149596]
[1740963703391,0.02106073,93590.0,93577.0,0.213727]
[1740963703392,0.160278,93588.0,93577.0,0.213727]
[1740963703637,0.01138872,93586.0,93570.0,0.0004023]
[1740963703828,0.160291,93580.0,93571.0,0.160305]
[1740963704228,0.0785,93590.0,93573.0,0.160302]
[1740963704438,0.160289,93581.0,93571.0,0.160306]
[1740963704635,0.160289,93581.0,93572.0,0.160304]
[1740963704851,0.160285,93583.0,93573.0,0.160302]
[1740963705096,0.16029,93580.0,93570.0,0.0004023]
[1740963705330,0.01136815,93588.0,93570.0,0.0004023]
[1740963705583,0.0785,93590.0,93570.0,0.0004023]
[1740963705838,0.1603,93575.0,93570.0,0.0004023]
[1740963706083,0.09002122,93590.0,93570.0,0.0004023]
[1740963706307,0.160306,93571.0,93570.0,0.0004023]
[1740963706790,0.213702,93588.0,93570.0,0.0004023]
[1740963706791,0.259483,93597.0,93570.0,0.0004023]
[1740963707037,0.10044794,93596.0,93570.0,0.0004023]
[1740963707273,0.160303,93573.0,93570.0,0.0004023]
[1740963707627,0.160306,93571.0,93570.0,0.0004023]
[1740963707849,0.10044794,93596.0,93570.0,0.0004023]
[1740963708044,0.160305,93572.0,93570.0,0.0004023]
[1740963708452,0.160304,93572.0,93570.0,0.0004023]
[1740963708707,0.160302,93573.0,93570.0,0.0004023]
[1740963709129,0.160306,93571.0,93570.0,0.0004023]
[1740963710805,0.02181633,93581.0,93570.0,0.0004023]
[1740963711024,0.00044773,93599.0,93571.0,0.00149586]
[1740963711280,0.00044773,93599.0,93570.0,0.0004023]
[1740963711408,0.1603,93575.0,93570.0,0.0004023]
[1740963711610,0.0217242,93592.0,93571.0,0.00149596]
[1740963711833,0.160282,93585.0,93576.0,0.160297]
[1740963712031,0.0217242,93592.0,93578.0,0.160294]
[1740963712234,0.0785,93590.0,93580.0,0.21372]
[1740963712458,0.00044773,93599.0,93581.0,0.00149567]
[1740963712629,0.16026,93598.0,93588.0,0.160275]
[1740963712838,0.00044773,93599.0,93589.0,0.00149566]
[1740963713232,0.00044773,93599.0,93594.0,0.160266]
[1740963713430,0.00044773,93599.0,93590.0,0.32253502]
[1740963713431,0.00044773,93599.0,93593.0,0.3]
[1740963713893,0.16026,93598.0,93593.0,0.3]
[1740963714071,0.00044773,93599.0,93593.0,0.3]
[1740963714601,0.16070573,93599.0,93590.0,0.3]
[1740963714804,0.00044773,93599.0,93590.0,0.3]
[1740963714933,0.16026,93598.0,93590.0,0.3]
[1740963715143,0.00044773,93599.0,93590.0,0.3]
[1740963715706,0.00044773,93599.0,93594.0,0.160266]
[1740963715968,0.00044773,93599.0,93590.0,0.3]
[1740963716363,0.00044773,93599.0,93592.0,0.213693]
[1740963716699,0.00044773,93599.0,93594.0,0.160266]
[1740963716881,0.00044773,93599.0,93591.0,0.160271]
[1740963717304,0.00044773,93599.0,93590.0,0.3]
[1740963717797,0.00044773,93599.0,93594.0,0.160266]
[1740963718110,0.00044773,93599.0,93594.0,1.660266]
[1740963719319,0.00044773,93599.0,93594.0,1.5]
[1740963720423,0.00044773,93599.0,93594.0,1.499]
[1740963720717,0.00044773,93599.0,93594.0,1.659266]
[1740963721265,0.00744752,93595.0,93594.0,1.659266]
[1740963722092,0.00744752,93595.0,93594.0,1.959266]
[1740963723838,0.00744752,93595.0,93594.0,2.26810302]
[1740963724063,0.00744752,93595.0,93594.0,2.46810302]
[1740963724409,0.00744752,93595.0,93594.0,2.26810302]
[1740963724979,0.00044752,93595.0,93594.0,2.26810302]
[1740963725399,0.00744752,93595.0,93594.0,2.26810302]
[1740963725627,0.00044752,93595.0,93594.0,2.26810302]
[1740963726039,0.00444752,93595.0,93594.0,2.26810302]
[1740963727515,0.00044752,93595.0,93594.0,2.06810302]
[1740963727900,0.00444752,93595.0,93594.0,2.06810302]
[1740963728109,0.00444752,93595.0,93594.0,2.39520302]
[1740963728314,0.00844752,93595.0,93594.0,2.39520302]
[1740963729718,0.00844752,93595.0,93594.0,2.1261]
[1740963729921,0.00844752,93595.0,93594.0,2.286366]
[1740963730558,0.00044752,93595.0,93594.0,2.286366]
[1740963730983,0.00444752,93595.0,93594.0,2.286366]
[1740963731198,0.00044752,93595.0,93594.0,2.286366]
[1740963731550,0.00444752,93595.0,93594.0,2.286366]
[1740963731919,0.05044752,93595.0,93594.0,2.286366]
[1740963732121,0.05444752,93595.0,93594.0,2.286366]
[1740963733706,0.05444752,93595.0,93594.0,2.1261]
[1740963733881,0.05844752,93595.0,93594.0,1.8261]
[1740963734091,0.05044752,93595.0,93594.0,1.8261]
[1740963734552,0.05444752,93595.0,93594.0,1.8261]
[1740963734734,0.05044752,93595.0,93594.0,1.986366]
[1740963735273,0.05444752,93595.0,93594.0,1.8261]
[1740963735547,0.21471152,93595.0,93594.0,1.8261]
[1740963735723,0.05444752,93595.0,93594.0,1.8261]
[1740963735926,0.21471152,93595.0,93594.0,1.8261]
[1740963736132,0.29341152,93595.0,93594.0,1.8261]
[1740963736668,0.29341152,93595.0,93594.0,1.499]
[1740963737647,0.29341152,93595.0,93594.0,1.499213]
[1740963737892,0.29341152,93595.0,93594.0,0.000213]
[1740963737893,0.28941152,93595.0,93594.0,0.000213]
[1740963738206,0.29641152,93595.0,93594.0,0.000213]
[1740963740437,0.28941152,93595.0,93594.0,0.000213]
[1740963740918,0.29641152,93595.0,93594.0,0.000213]
[1740963741128,0.33871152,93595.0,93594.0,0.000213]
[1740963741470,0.34571152,93595.0,93594.0,0.000213]
[1740963742174,0.33871152,93595.0,93594.0,0.000213]
[1740963743389,0.42259152,93595.0,93594.0,0.000213]
[1740963743590,0.42959152,93595.0,93594.0,0.000213]
[1740963744044,0.42259152,93595.0,93594.0,0.000213]
[1740963744361,0.42959152,93595.0,93594.0,0.000213]
[1740963744559,0.42259152,93595.0,93594.0,0.000213]
[1740963744811,0.42959152,93595.0,93594.0,0.000213]
[1740963745222,0.42259152,93595.0,93594.0,0.000213]
[1740963745432,0.42959152,93595.0,93594.0,0.000213]
[1740963746549,0.22002752,93595.0,93594.0,0.000213]
[1740963746772,0.21071152,93595.0,93594.0,0.000213]
[1740963746980,0.05044752,93595.0,93594.0,0.000213]
[1740963747202,0.21771152,93595.0,93594.0,0.000213]
[1740963747399,0.21071152,93595.0,93594.0,0.000213]
[1740963747640,0.21771152,93595.0,93594.0,0.000213]
[1740963748021,0.21071152,93595.0,93594.0,0.000213]
[1740963748191,0.21771152,93595.0,93594.0,0.000213]
[1740963748750,0.28691152,93595.0,93594.0,0.000213]
[1740963748951,0.33301152,93595.0,93594.0,0.000213]
[1740963749795,0.281506,93571.0,93557.0,0.09579491]
[1740963749975,0.365346,93571.0,93557.0,0.09579491]
[1740963750168,0.365346,93571.0,93564.0,1.5]
[1740963750768,0.365346,93571.0,93557.0,0.09579491]
[1740963751515,0.372346,93571.0,93557.0,0.09579491]
[1740963752174,0.372346,93571.0,93546.0,0.0002131]
[1740963753325,0.379346,93571.0,93546.0,0.0002131]
[1740963753787,0.40045032,93571.0,93546.0,0.0002131]
[1740963755492,0.236147,93547.0,93546.0,0.0002131]
[1740963755702,0.284547,93547.0,93546.0,0.0002131]
[1740963756532,0.29590328,93547.0,93546.0,0.0002131]
[1740963756691,0.26857545,93547.0,93546.0,0.0002131]
[1740963756889,0.25450328,93547.0,93546.0,0.0002131]
[1740963757115,0.24750328,93547.0,93546.0,0.0002131]
[1740963757297,0.25450328,93547.0,93546.0,0.0002131]
[1740963757706,0.24750328,93547.0,93546.0,0.0002131]
[1740963757919,0.25450328,93547.0,93546.0,0.0002131]
[1740963758233,0.24750328,93547.0,93546.0,0.0002131]
[1740963758449,0.24750328,93547.0,93546.0,1.5002131]
[1740963759031,0.17170328,93547.0,93546.0,1.5002131]
[1740963759738,0.01835628,93547.0,93546.0,1.5002131]
[1740963759993,0.17170328,93547.0,93546.0,1.5002131]
[1740963760211,0.17870328,93547.0,93546.0,1.5002131]
[1740963760995,0.17170328,93547.0,93546.0,1.5002131]
[1740963761426,0.17870328,93547.0,93546.0,1.5002131]
[1740963763009,0.17170328,93547.0,93546.0,1.5002131]
[1740963763164,0.17870328,93547.0,93546.0,1.5002131]
[1740963768107,0.17870328,93547.0,93546.0,0.0002131]
[1740963769709,0.26250328,93547.0,93546.0,0.0002131]
[1740963771363,0.17870328,93547.0,93546.0,0.0002131]
[1740963773548,0.17170328,93547.0,93546.0,0.0002131]
[1740963773866,0.17870328,93547.0,93546.0,0.0002131]
[1740963774066,0.25550328,93547.0,93546.0,0.0002131]
[1740963774271,0.17170328,93547.0,93546.0,0.0002131]
[1740963774616,0.25550328,93547.0,93546.0,0.0002131]
[1740963775017,0.26250328,93547.0,93546.0,0.0002131]
[1740963777606,0.17870328,93547.0,93546.0,0.0002131]
[1740963777815,0.17170328,93547.0,93546.0,0.0002131]
[1740963777971,0.17870328,93547.0,93546.0,0.0002131]
[1740963778176,0.17870328,93547.0,93546.0,1.5002131]
[1740963778400,0.17170328,93547.0,93546.0,1.5002131]
[1740963779096,0.0795,93562.0,93546.0,1.5002131]
[1740963779421,0.08376,93559.0,93547.0,0.00149644]
[1740963779613,0.160331,93556.0,93547.0,0.00149644]
[1740963779810,0.160331,93556.0,93550.0,1.5]
[1740963780141,0.29753,93559.0,93550.0,1.5]
[1740963780142,0.01122059,93557.0,93550.0,1.5]
[1740963780282,0.08376,93559.0,93550.0,1.493]
[1740963780680,0.160338,93552.0,93550.0,1.493]
[1740963780885,0.16034,93551.0,93550.0,1.493]
[1740963782004,0.160338,93552.0,93550.0,1.4919]
[1740963782545,0.16034,93551.0,93550.0,1.4919]
[1740963783105,0.09076,93559.0,93550.0,1.4919]
[1740963783106,0.213771,93558.0,93550.0,1.4919]
[1740963783307,0.160336,93554.0,93550.0,1.4919]
[1740963783509,0.08376,93564.0,93550.0,1.4919]
[1740963783510,0.00040354,93571.0,93550.0,1.4919]
[1740963783715,0.00550358,93551.0,93550.0,1.653242]
[1740963784046,0.00550358,93551.0,93550.0,1.947242]
[1740963784375,0.00550358,93551.0,93550.0,2.073142]
[1740963784574,0.007,93558.0,93557.0,0.16033]
[1740963785066,0.007,93558.0,93555.0,0.160332]
[1740963785311,0.01129954,93558.0,93551.0,0.3]
[1740963785480,0.160332,93556.0,93551.0,0.3]
[1740963785696,0.0814,93567.0,93541.0,0.3271]
[1740963785844,0.160347,93547.0,93541.0,0.3271]
[1740963786688,0.046,93566.0,93550.0,0.001]
[1740963786894,0.160347,93547.0,93541.0,0.3271]
[1740963787091,0.160347,93547.0,93530.0,0.047]
[1740963787287,0.160347,93547.0,93528.0,0.42289491]
[1740963787288,0.240447,93547.0,93528.0,0.3271]
[1740963788175,0.240447,93547.0,93531.0,1.5]
[1740963790086,0.247447,93547.0,93546.0,0.0012131]
[1740963792501,0.167347,93547.0,93546.0,0.0012131]
[1740963796827,0.591247,93547.0,93546.0,0.0012131]
[1740963797025,0.591247,93547.0,93546.0,1e-08]
[1740963797026,0.62261966,93547.0,93546.0,1e-08]
[1740963797799,0.160384,93525.0,93524.0,0.0002133]
[1740963798045,0.24556048,93525.0,93524.0,0.0002133]
[1740963798243,0.244064,93525.0,93524.0,0.0002133]
[1740963798573,0.204064,93525.0,93524.0,0.0002133]
[1740963799212,0.20446729,93525.0,93524.0,0.0002133]
[1740963800215,0.20946729,93525.0,93524.0,0.0002133]
[1740963800431,0.12578729,93525.0,93524.0,0.0002133]
[1740963800636,0.01676988,93525.0,93524.0,0.0002133]
[1740963801006,0.17715388,93525.0,93524.0,0.0002133]
[1740963801565,0.01676988,93525.0,93524.0,1.5002133]
[1740963801777,0.17715388,93525.0,93524.0,1.5002133]
[1740963803938,0.01676988,93525.0,93524.0,1.5002133]
[1740963804658,0.01676988,93525.0,93524.0,0.0002133]
[1740963804870,0.17715388,93525.0,93524.0,0.0002133]
[1740963807031,0.00540329,93525.0,93524.0,0.0002133]
[1740963807371,0.16578729,93525.0,93524.0,0.0002133]
[1740963807722,0.1772098,93525.0,93524.0,0.0002133]
[1740963808129,0.1772098,93525.0,93524.0,1.5002133]
[1740963809297,0.00540329,93525.0,93524.0,1.9876993]
[1740963809737,0.00540329,93525.0,93524.0,2.2876993]
[1740963810076,0.00540329,93525.0,93524.0,2.49071299]
[1740963810197,0.00540329,93525.0,93524.0,2.50071189]
[1740963810661,0.00040329,93525.0,93524.0,2.50071189]
[1740963810871,0.00540329,93525.0,93524.0,2.50071189]
[1740963811096,0.00040329,93525.0,93524.0,2.50871065]
[1740963811742,0.00040329,93525.0,93524.0,2.49871175]
[1740963812560,0.00040329,93525.0,93524.0,2.37859806]
[1740963812685,0.00040329,93525.0,93524.0,2.3705993]
[1740963814658,0.00040329,93525.0,93524.0,2.47943632]
[1740963818571,0.00040329,93525.0,93524.0,2.3705993]
[1740963818803,0.00040329,93525.0,93524.0,2.2876993]
[1740963819258,0.00040329,93525.0,93524.0,1.8273133]
[1740963819737,0.16123481,93525.0,93524.0,0.0002133]
[1740963820441,0.16523481,93525.0,93524.0,0.0002133]
[1740963820775,0.00085081,93525.0,93524.0,0.0002133]
[1740963821099,0.00585081,93525.0,93524.0,0.0002133]
[1740963821247,0.00585081,93525.0,93524.0,0.1605993]
[1740963823237,0.00085081,93525.0,93524.0,0.1605993]
[1740963823637,0.00585081,93525.0,93524.0,0.1605993]
[1740963824458,0.00085081,93525.0,93524.0,0.1605993]